fUST/lending_fUST_20240819
["ID","MTS","AMOUNT","RATE_DAILY","PERIOD"]
[335228122,1723997449003,-4325.35,0.00016438,2]
[335228123,1723997449013,-500.0,0.00016438,2]
[335228124,1723997449023,-508.39620964,0.00016438,2]
[335228125,1723997449033,-595.76,0.00016438,2]
[335228126,1723997449043,-525.36014816,0.00016438,2]
[335228127,1723997449052,-500.0,0.00016438,2]
[335228128,1723997449062,-388.24660019,0.00016438,2]
[335228129,1723997449072,-1273.73,0.00016438,2]
[335228130,1723997449083,-542.24,0.00016438,2]
[335228131,1723997449093,-500.0,0.00016438,2]
[335228132,1723997449105,-500.0,0.00016438,2]
[335228133,1723997449114,-1226.06,0.00016438,2]
[335228134,1723997449124,-509.60882877,0.00016438,2]
[335228135,1723997449134,-500.0,0.00016438,2]
[335228136,1723997449143,-508.3067394,0.00016438,2]
[335228137,1723997449153,-535.57,0.00016438,2]
[335228138,1723997449162,-500.0,0.00016438,2]
[335228139,1723997449173,-500.0,0.00016438,2]
[335228140,1723997449183,-500.96333795,0.00016438,2]
[335228141,1723997449193,-500.0,0.00016438,2]
[335228142,1723997449204,-521.95790595,0.00016438,2]
[335228143,1723997449215,-1047.1,0.00016438,2]
[335228144,1723997449225,-500.0,0.00016438,2]
[335228145,1723997449235,-500.0,0.00016438,2]
[335228146,1723997449244,-501.4158508,0.00016438,2]
[335228147,1723997449253,-507.65850958,0.00016438,2]
[335228148,1723997449262,-500.0,0.00016438,2]
[335228149,1723997449271,-500.0,0.00016438,2]
[335228150,1723997449281,-511.09,0.00016438,2]
[335228151,1723997449290,-687.93,0.00016438,2]
[335228152,1723997449300,-500.0,0.00016438,2]
[335228153,1723997449310,-500.0,0.00016438,2]
[335228154,1723997449319,-615.89160897,0.00016438,2]
[335228155,1723997449328,-500.0,0.00016438,2]
[335228156,1723997449338,-500.0,0.00016438,2]
[335228157,1723997449348,-1088.38,0.00016438,2]
[335228158,1723997449357,-559.91,0.00016438,2]
[335228159,1723997449367,-503.12940545,0.00016438,2]
[335228160,1723997449376,-500.0,0.00016438,2]
[335228161,1723997449385,-500.0,0.00016438,2]
[335228162,1723997449395,-500.0,0.00016438,2]
[335228163,1723997449404,-7042.72,0.00016438,2]
[335228164,1723997449416,-500.0,0.00016438,2]
[335228165,1723997449426,-500.0,0.00016438,2]
[335228166,1723997449437,-500.0,0.00016438,2]
[335228167,1723997449447,-500.0,0.00016438,2]
[335228168,1723997449458,-2684.52,0.00016438,2]
[335228169,1723997449469,-464.55269977,0.00016438,2]
[335228170,1723997459741,1057.37014352,6.641e-05,2]
[335228171,1723997468265,665.1114012,6.641e-05,2]
[335228172,1723997475208,993.12728435,6.641e-05,2]
[335228173,1723997480550,413.45265018,0.0001,2]
[335228174,1723997483064,980.88998095,6.641e-05,2]
[335228175,1723997486963,342.54706255,6.641e-05,2]
[335228176,1723997497160,166.4,5.479e-05,2]
[335228177,1723997499960,688.33798731,6.641e-05,2]
[335228182,1723997621906,494.96995604,8.05e-05,2]
[335228183,1723997627440,534.45169516,8.05e-05,2]
[335228184,1723997640432,738.28384045,8.05e-05,2]
[335228185,1723997641773,667.42736439,8.05e-05,2]
[335228186,1723997642933,892.1234828,8.05e-05,2]
[335228187,1723997682849,494.7731256,8.05e-05,2]
[335228188,1723997732198,2139.78321751,9.757e-05,2]
[335228189,1723997795595,166.4,5.479e-05,2]
[335228209,1723998095997,166.4,5.479e-05,2]
[335228212,1723998325135,269.90539932,6.641e-05,7]
[335228218,1723998395693,166.4,5.479e-05,2]
[335228219,1723998440163,-722.46220702,0.000129,2]
[335228220,1723998441129,-1747.17796922,0.000129,2]
[335228221,1723998441155,-493.25192424,0.0001295,2]
[335228222,1723998441178,-536.4455432,0.0001299,2]
[335228259,1723998632374,-24084.02975534,0.00012894,2]
[335228300,1723998638475,-815.97024466,0.00012894,2]
[335228302,1723998638486,-2160.93515421,0.000129,2]
[335228304,1723998638498,-48890.0246235,0.0001299,2]
[335228307,1723998638511,-162.81928945,0.00013,2]
[335228309,1723998638523,-100000.0,0.00013,2]
[335228311,1723998638533,-183.27485447,0.00013598,2]
[335228313,1723998638543,-500.0,0.00013698,2]
[335228315,1723998638555,-500.0,0.00013698,2]
[335228317,1723998638566,-500.0,0.00013698,2]
[335228320,1723998638577,-582.63131364,0.00013698,2]
[335228322,1723998638587,-157.13401873,0.00013698,2]
[335228324,1723998638596,-282.88983606,0.00013698,2]
[335228325,1723998638605,-500.0,0.00013698,2]
[335228327,1723998638615,-186.270078,0.00013699,2]
[335228329,1723998638624,-3000.0,0.00013699,2]
[335228331,1723998638634,-500.0,0.00013699,2]
[335228333,1723998638644,-158.080039,0.00014247,2]
[335228335,1723998638653,-159.069763,0.00014247,2]
[335228336,1723998638663,-782.46103051,0.00015,2]
[335228338,1723998638673,-5244.23039316,0.00015,2]
[335228340,1723998638683,-1110.8112074,0.00015,2]
[335228342,1723998638692,-153.0,0.00015479,2]
[335228344,1723998638701,-306.0,0.00015589,2]
[335228346,1723998638710,-153.0,0.00015753,2]
[335228348,1723998638720,-153.0,0.00015753,2]
[335228350,1723998638730,-153.0,0.00015753,2]
[335228352,1723998638742,-153.0,0.00015753,2]
[335228354,1723998638751,-153.0,0.00015753,2]
[335228356,1723998638761,-153.0,0.00015753,2]
[335228358,1723998638771,-153.0,0.00015781,2]
[335228360,1723998638781,-304.5556459,0.00015836,2]
[335228362,1723998638791,-150.112234,0.00016,2]
[335228364,1723998638800,-3793.0,0.00016,2]
[335228366,1723998638810,-247.92845427,0.00016,2]
[335228368,1723998638820,-1009.21986791,0.00016,2]
[335228370,1723998638829,-48890.0246235,0.00016033,2]
[335228372,1723998638839,-2160.93515417,0.00016043,2]
[335228374,1723998638848,-153.0,0.0001611,2]
[335228376,1723998638860,-153.0,0.0001611,2]
[335228378,1723998638877,-153.0,0.0001611,2]
[335228380,1723998638886,-153.0,0.0001611,2]
[335228383,1723998638898,-153.0,0.0001611,2]
[335228385,1723998638907,-153.0,0.0001611,2]
[335228387,1723998638918,-153.0,0.0001611,2]
[335228389,1723998638928,-153.0,0.0001611,2]
[335228391,1723998638939,-153.0,0.0001611,2]
[335228393,1723998638948,-153.0,0.0001611,2]
[335228395,1723998638958,-153.0,0.0001611,2]
[335228397,1723998638968,-153.0,0.0001611,2]
[335228399,1723998638977,-306.0,0.0001611,2]
[335228401,1723998638988,-5188.49053978,0.00016172,2]
[335228403,1723998638998,-7820.37284034,0.00016228,2]
[335228405,1723998639008,-153.0,0.00016301,2]
[335228407,1723998639017,-153.0,0.00016301,2]
[335228409,1723998639027,-153.0,0.00016301,2]
[335228411,1723998639036,-153.0,0.00016301,2]
[335228413,1723998639045,-153.0,0.00016301,2]
[335228414,1723998639055,-48890.0246235,0.00016328,2]
[335228416,1723998639064,-2962.10437773,0.00016338,2]
[335228418,1723998639073,-40000.0,0.00016338,2]
[335228421,1723998639092,-150.0,0.00016368,2]
[335228424,1723998639103,-260.8194266,0.00016384,2]
[335228426,1723998639113,-150.112233,0.000164,2]
[335228428,1723998639123,-146670.073871,0.00016428,2]
[335228430,1723998639133,-396.29599239,0.00016438,2]
[335228432,1723998639143,-502.39336279,0.00016438,2]
[335228434,1723998639152,-500.0,0.00016438,2]
[335228436,1723998639162,-500.0,0.00016438,2]
[335228438,1723998639172,-500.0,0.00016438,2]
[335228440,1723998639181,-500.0,0.00016438,2]
[335228442,1723998639191,-500.0,0.00016438,2]
[335228444,1723998639200,-500.0,0.00016438,2]
[335228446,1723998639210,-167.27726661,0.00016438,2]
[335228448,1723998639219,-554.6380685,0.00016438,2]
[335228450,1723998639229,-500.0,0.00016438,2]
[335228452,1723998639239,-736.4,0.00016438,2]
[335228455,1723998639250,-500.0,0.00016438,2]
[335228456,1723998639259,-500.0,0.00016438,2]
[335228458,1723998639268,-500.0,0.00016438,2]
[335228460,1723998639278,-504.08150754,0.00016438,2]
[335228462,1723998639288,-500.0,0.00016438,2]
[335228464,1723998639297,-547.58,0.00016438,2]
[335228467,1723998639307,-500.0,0.00016438,2]
[335228469,1723998639316,-502.75146287,0.00016438,2]
[335228471,1723998639326,-640.56,0.00016438,2]
[335228473,1723998639336,-500.0,0.00016438,2]
[335228475,1723998639345,-500.0,0.00016438,2]
[335228477,1723998639355,-245.65795402,0.00016438,2]
[335228479,1723998639364,-500.0,0.00016438,2]
[335228481,1723998639374,-503.26337526,0.00016438,2]
[335228483,1723998639383,-500.0,0.00016438,2]
[335228485,1723998639394,-500.0,0.00016438,2]
[335228487,1723998639404,-500.0,0.00016438,2]
[335228489,1723998639414,-507.80802781,0.00016438,2]
[335228491,1723998639425,-500.0,0.00016438,2]
[335228494,1723998639436,-505.3599567,0.00016438,2]
[335228496,1723998639446,-500.0,0.00016438,2]
[335228498,1723998639457,-500.0,0.00016438,2]
[335228500,1723998639466,-500.0,0.00016438,2]
[335228502,1723998639476,-150.0,0.00016438,2]
[335228504,1723998639486,-500.0,0.00016438,2]
[335228506,1723998639496,-500.0,0.00016438,2]
[335228508,1723998639507,-500.0,0.00016438,2]
[335228510,1723998639517,-500.0,0.00016438,2]
[335228512,1723998639527,-500.0,0.00016438,2]
[335228514,1723998639537,-500.0,0.00016438,2]
[335228516,1723998639547,-612.12252098,0.00016438,2]
[335228518,1723998639556,-501.6854391,0.00016438,2]
[335228520,1723998639566,-500.0,0.00016438,2]
[335228522,1723998639576,-500.0,0.00016438,2]
[335228524,1723998639586,-500.0,0.00016438,2]
[335228526,1723998639596,-500.0,0.00016438,2]
[335228528,1723998639607,-500.0,0.00016438,2]
[335228530,1723998639617,-500.0,0.00016438,2]
[335228532,1723998639627,-500.0,0.00016438,2]
[335228534,1723998639637,-500.0,0.00016438,2]
[335228536,1723998639647,-500.0,0.00016438,2]
[335228538,1723998639658,-309.0108856,0.00016438,2]
[335228540,1723998639668,-500.0,0.00016438,2]
[335228543,1723998639678,-500.0,0.00016438,2]
[335228545,1723998639688,-611.83015375,0.00016438,2]
[335228547,1723998639698,-692.09,0.00016438,2]
[335228548,1723998639708,-500.0,0.00016438,2]
[335228550,1723998639719,-417.33335301,0.00016438,2]
[335228551,1723998639730,-500.0,0.00016438,2]
[335228552,1723998639740,-500.0,0.00016438,2]
[335228553,1723998639750,-500.0,0.00016438,2]
[335228554,1723998639764,-500.0,0.00016438,2]
[335228555,1723998639774,-200.0,0.00016438,2]
[335228556,1723998639784,-500.0,0.00016438,2]
[335228557,1723998639793,-500.0,0.00016438,2]
[335228558,1723998639803,-500.0,0.00016438,2]
[335228559,1723998639815,-649.0,0.00016438,2]
[335228560,1723998639826,-500.0,0.00016438,2]
[335228561,1723998639835,-500.0,0.00016438,2]
[335228562,1723998639845,-500.0,0.00016438,2]
[335228563,1723998639856,-500.0,0.00016438,2]
[335228564,1723998639872,-500.0,0.00016438,2]
[335228565,1723998639882,-500.0,0.00016438,2]
[335228566,1723998639892,-500.0,0.00016438,2]
[335228567,1723998639904,-500.0,0.00016438,2]
[335228568,1723998639914,-500.0,0.00016438,2]
[335228569,1723998639924,-500.0,0.00016438,2]
[335228570,1723998639936,-329.41772764,0.00016438,2]
[335228571,1723998639950,-500.0,0.00016438,2]
[335228572,1723998639962,-500.0,0.00016438,2]
[335228573,1723998639972,-500.0,0.00016438,2]
[335228574,1723998639982,-500.0,0.00016438,2]
[335228575,1723998639992,-500.0,0.00016438,2]
[335228576,1723998640001,-506.77248503,0.00016438,2]
[335228577,1723998640013,-502.85908508,0.00016438,2]
[335228578,1723998640024,-500.0,0.00016438,2]
[335228579,1723998640034,-510.71652448,0.00016438,2]
[335228580,1723998640044,-500.0,0.00016438,2]
[335228582,1723998640054,-500.0,0.00016438,2]
[335228583,1723998640064,-500.0,0.00016438,2]
[335228584,1723998640074,-500.0,0.00016438,2]
[335228585,1723998640084,-252.00719866,0.00016438,2]
[335228586,1723998640095,-506.40033661,0.00016438,2]
[335228587,1723998640105,-682.7,0.00016438,2]
[335228588,1723998640115,-500.0,0.00016438,2]
[335228589,1723998640125,-512.40516125,0.00016438,2]
[335228590,1723998640135,-500.0,0.00016438,2]
[335228591,1723998640146,-500.0,0.00016438,2]
[335228592,1723998640155,-500.0,0.00016438,2]
[335228593,1723998640164,-697.63,0.00016438,2]
[335228594,1723998640174,-500.0,0.00016438,2]
[335228595,1723998640184,-500.0,0.00016438,2]
[335228596,1723998640195,-500.0,0.00016438,2]
[335228597,1723998640206,-500.0,0.00016438,2]
[335228598,1723998640216,-519.3786446,0.00016438,2]
[335228600,1723998640226,-500.0,0.00016438,2]
[335228602,1723998640236,-500.0,0.00016438,2]
[335228604,1723998640245,-500.0,0.00016438,2]
[335228606,1723998640256,-500.0,0.00016438,2]
[335228608,1723998640265,-501.12137864,0.00016438,2]
[335228609,1723998640275,-500.0,0.00016438,2]
[335228611,1723998640285,-500.0,0.00016438,2]
[335228613,1723998640294,-1303.51,0.00016438,2]
[335228615,1723998640304,-500.0,0.00016438,2]
[335228617,1723998640314,-500.0,0.00016438,2]
[335228618,1723998640324,-500.0,0.00016438,2]
[335228619,1723998640334,-500.0,0.00016438,2]
[335228620,1723998640344,-638.39,0.00016438,2]
[335228621,1723998640354,-500.0,0.00016438,2]
[335228622,1723998640363,-310.688403,0.00016438,2]
[335228623,1723998640374,-500.0,0.00016438,2]
[335228624,1723998640383,-310.688403,0.00016438,2]
[335228625,1723998640393,-418.11879524,0.00016438,2]
[335228626,1723998640402,-500.0,0.00016438,2]
[335228627,1723998640411,-310.688403,0.00016438,2]
[335228628,1723998640422,-310.688403,0.00016438,2]
[335228629,1723998640431,-500.0,0.00016438,2]
[335228630,1723998640441,-510.97364611,0.00016438,2]
[335228631,1723998640451,-500.81633259,0.00016438,2]
[335228632,1723998640461,-500.0,0.00016438,2]
[335228633,1723998640471,-500.0,0.00016438,2]
[335228634,1723998640481,-500.0,0.00016438,2]
[335228635,1723998640490,-500.0,0.00016438,2]
[335228636,1723998640500,-500.0,0.00016438,2]
[335228637,1723998640510,-500.0,0.00016438,2]
[335228638,1723998640520,-500.0,0.00016438,2]
[335228639,1723998640529,-151.0,0.00016438,2]
[335228640,1723998640541,-151.0,0.00016438,2]
[335228641,1723998640552,-599.21,0.00016438,2]
[335228642,1723998640563,-500.0,0.00016438,2]
[335228643,1723998640574,-506.59060356,0.00016438,2]
[335228644,1723998640584,-500.0,0.00016438,2]
[335228645,1723998640595,-500.0,0.00016438,2]
[335228646,1723998640604,-500.0,0.00016438,2]
[335228648,1723998640614,-503.19594722,0.00016438,2]
[335228650,1723998640624,-500.0,0.00016438,2]
[335228652,1723998640762,-500.0,0.00016438,2]
[335228653,1723998640771,-526.41,0.00016438,2]
[335228654,1723998640781,-151.0,0.00016438,2]
[335228656,1723998640790,-151.0,0.00016438,2]
[335228657,1723998640800,-500.0,0.00016438,2]
[335228659,1723998640809,-500.0,0.00016438,2]
[335228661,1723998640819,-500.0,0.00016438,2]
[335228663,1723998640828,-500.0,0.00016438,2]
[335228664,1723998640837,-211.739216,0.00016438,2]
[335228665,1723998640846,-500.0,0.00016438,2]
[335228666,1723998640856,-467.06200236,0.00016438,2]
[335228667,1723998640868,-500.0,0.00016438,2]
[335228668,1723998640877,-500.0,0.00016438,2]
[335228669,1723998640886,-500.0,0.00016438,2]
[335228670,1723998640895,-558.25,0.00016438,2]
[335228671,1723998640907,-771.58,0.00016438,2]
[335228672,1723998640916,-500.0,0.00016438,2]
[335228673,1723998640925,-500.0,0.00016438,2]
[335228674,1723998640936,-500.0,0.00016438,2]
[335228675,1723998640946,-500.0,0.00016438,2]
[335228676,1723998640955,-500.0,0.00016438,2]
[335228677,1723998640965,-500.0,0.00016438,2]
[335228678,1723998640974,-500.0,0.00016438,2]
[335228679,1723998640983,-500.0,0.00016438,2]
[335228680,1723998640992,-500.0,0.00016438,2]
[335228681,1723998641001,-500.0,0.00016438,2]
[335228682,1723998641012,-500.0,0.00016438,2]
[335228683,1723998641022,-379.23394776,0.00016438,2]
[335228684,1723998641031,-505.04959204,0.00016438,2]
[335228685,1723998641042,-511.45949116,0.00016438,2]
[335228686,1723998641051,-500.0,0.00016438,2]
[335228687,1723998641060,-500.0,0.00016438,2]
[335228688,1723998641069,-500.0,0.00016438,2]
[335228689,1723998641078,-500.0,0.00016438,2]
[335228690,1723998641087,-500.0,0.00016438,2]
[335228691,1723998641097,-500.0,0.00016438,2]
[335228692,1723998641106,-500.0,0.00016438,2]
[335228693,1723998641115,-500.0,0.00016438,2]
[335228694,1723998641124,-363.00851937,0.00016438,2]
[335228695,1723998641133,-500.0,0.00016438,2]
[335228696,1723998641143,-500.0,0.00016438,2]
[335228697,1723998641151,-500.0,0.00016438,2]
[335228698,1723998641161,-189.611065,0.00016438,2]
[335228699,1723998641170,-500.0,0.00016438,2]
[335228700,1723998641179,-189.611065,0.00016438,2]
[335228701,1723998641188,-189.611065,0.00016438,2]
[335228702,1723998641197,-500.0,0.00016438,2]
[335228703,1723998641207,-189.611065,0.00016438,2]
[335228704,1723998641216,-189.611065,0.00016438,2]
[335228705,1723998641227,-189.611065,0.00016438,2]
[335228706,1723998641236,-176.54166982,0.00016438,2]
[335228707,1723998641247,-500.0,0.00016438,2]
[335228708,1723998641260,-500.0,0.00016438,2]
[335228709,1723998641269,-513.78946018,0.00016438,2]
[335228710,1723998641278,-495.78922425,0.00016438,2]
[335228711,1723998641287,-500.0,0.00016438,2]
[335228712,1723998641297,-500.0,0.00016438,2]
[335228713,1723998641306,-151.0,0.00016438,2]
[335228714,1723998641316,-151.0,0.00016438,2]
[335228715,1723998641325,-151.0,0.00016438,2]
[335228716,1723998641334,-500.0,0.00016438,2]
[335228717,1723998641343,-500.0,0.00016438,2]
[335228718,1723998641353,-503.20256977,0.00016438,2]
[335228719,1723998641362,-500.0,0.00016438,2]
[335228720,1723998641371,-500.0,0.00016438,2]
[335228721,1723998641380,-151.0,0.00016438,2]
[335228722,1723998641390,-500.0,0.00016438,2]
[335228723,1723998641402,-151.93627,0.00016438,2]
[335228724,1723998641411,-171.40676647,0.00016438,2]
[335228725,1723998641423,-500.42374087,0.00016438,2]
[335228726,1723998641433,-814.14,0.00016438,2]
[335228727,1723998641443,-500.0,0.00016438,2]
[335228728,1723998641453,-151.0,0.00016438,2]
[335228729,1723998641462,-151.0,0.00016438,2]
[335228730,1723998641472,-151.0,0.00016438,2]
[335228731,1723998641481,-500.0,0.00016438,2]
[335228732,1723998641491,-500.0,0.00016438,2]
[335228733,1723998641500,-500.0,0.00016438,2]
[335228734,1723998641510,-500.0,0.00016438,2]
[335228735,1723998641519,-506.70627482,0.00016438,2]
[335228736,1723998641529,-500.0,0.00016438,2]
[335228737,1723998641538,-500.0,0.00016438,2]
[335228738,1723998641547,-500.0,0.00016438,2]
[335228739,1723998641557,-500.0,0.00016438,2]
[335228740,1723998641566,-500.0,0.00016438,2]
[335228741,1723998641575,-745.57,0.00016438,2]
[335228742,1723998641584,-500.0,0.00016438,2]
[335228743,1723998641593,-500.0,0.00016438,2]
[335228744,1723998641602,-500.0,0.00016438,2]
[335228745,1723998641611,-500.0,0.00016438,2]
[335228746,1723998641620,-500.0,0.00016438,2]
[335228747,1723998641629,-500.0,0.00016438,2]
[335228748,1723998641638,-500.0,0.00016438,2]
[335228749,1723998641647,-500.0,0.00016438,2]
[335228750,1723998641657,-500.0,0.00016438,2]
[335228751,1723998641666,-500.0,0.00016438,2]
[335228752,1723998641675,-500.0,0.00016438,2]
[335228753,1723998641685,-500.0,0.00016438,2]
[335228754,1723998641694,-500.0,0.00016438,2]
[335228755,1723998641704,-500.0,0.00016438,2]
[335228756,1723998641712,-500.0,0.00016438,2]
[335228757,1723998641722,-500.0,0.00016438,2]
[335228758,1723998641732,-500.0,0.00016438,2]
[335228759,1723998641743,-500.0,0.00016438,2]
[335228760,1723998641752,-500.0,0.00016438,2]
[335228761,1723998641763,-500.0,0.00016438,2]
[335228762,1723998641774,-468.77682635,0.00016438,2]
[335228763,1723998641785,-598.23,0.00016438,2]
[335228764,1723998641795,-500.0,0.00016438,2]
[335228765,1723998641805,-500.0,0.00016438,2]
[335228766,1723998641815,-500.0,0.00016438,2]
[335228767,1723998641826,-500.0,0.00016438,2]
[335228768,1723998641836,-151.0,0.00016438,2]
[335228769,1723998641846,-151.0,0.00016438,2]
[335228770,1723998641856,-154.324442,0.00016438,2]
[335228771,1723998641871,-500.0,0.00016438,2]
[335228772,1723998641882,-384.75298051,0.00016438,2]
[335228773,1723998642113,-115.24701949,0.00016438,2]
[335228774,1723998642124,-501.50506461,0.00016438,2]
[335228775,1723998642134,-500.0,0.00016438,2]
[335228776,1723998642145,-502.12800461,0.00016438,2]
[335228777,1723998642156,-632.06211442,0.00016438,2]
[335228778,1723998642167,-1035.93,0.00016438,2]
[335228779,1723998642177,-500.65763525,0.00016438,2]
[335228780,1723998642188,-571.47,0.00016438,2]
[335228781,1723998642199,-697.36,0.00016438,2]
[335228782,1723998642210,-508.1681348,0.00016438,2]
[335228783,1723998642220,-500.0,0.00016438,2]
[335228784,1723998642231,-500.0,0.00016438,2]
[335228785,1723998642242,-500.0,0.00016438,2]
[335228786,1723998642252,-500.0,0.00016438,2]
[335228787,1723998642263,-500.0,0.00016438,2]
[335228788,1723998642274,-500.0,0.00016438,2]
[335228789,1723998642286,-500.0,0.00016438,2]
[335228790,1723998642295,-500.0,0.00016438,2]
[335228791,1723998642305,-500.0,0.00016438,2]
[335228792,1723998642314,-500.0,0.00016438,2]
[335228793,1723998642324,-500.0,0.00016438,2]
[335228794,1723998642333,-500.0,0.00016438,2]
[335228795,1723998642342,-484.98220317,0.00016438,2]
[335228796,1723998642350,-500.0,0.00016438,2]
[335228797,1723998642360,-500.0,0.00016438,2]
[335228798,1723998642370,-500.0,0.00016438,2]
[335228799,1723998642379,-151.0,0.00016438,2]
[335228800,1723998642389,-500.0,0.00016438,2]
[335228801,1723998642400,-151.0,0.00016438,2]
[335228802,1723998642411,-151.0,0.00016438,2]
[335228803,1723998642420,-501.64080858,0.00016438,2]
[335228804,1723998642432,-694.6,0.00016438,2]
[335228805,1723998642442,-500.0,0.00016438,2]
[335228806,1723998642454,-500.0,0.00016438,2]
[335228807,1723998642463,-151.0,0.00016438,2]
[335228808,1723998642474,-151.0,0.00016438,2]
[335228809,1723998642485,-151.0,0.00016438,2]
[335228810,1723998642495,-151.0,0.00016438,2]
[335228811,1723998642504,-151.0,0.00016438,2]
[335228812,1723998642514,-1065.61,0.00016438,2]
[335228813,1723998642524,-151.0,0.00016438,2]
[335228814,1723998642535,-500.0,0.00016438,2]
[335228815,1723998642545,-500.0,0.00016438,2]
[335228816,1723998642555,-678.73,0.00016438,2]
[335228817,1723998642568,-500.0,0.00016438,2]
[335228818,1723998642579,-508.60930539,0.00016438,2]
[335228819,1723998642589,-500.0,0.00016438,2]
[335228820,1723998642599,-500.0,0.00016438,2]
[335228821,1723998642609,-504.50626251,0.00016438,2]
[335228822,1723998642620,-686.8,0.00016438,2]
[335228823,1723998642632,-500.0,0.00016438,2]
[335228824,1723998642642,-151.0,0.00016438,2]
[335228825,1723998642653,-151.0,0.00016438,2]
[335228826,1723998642663,-151.0,0.00016438,2]
[335228827,1723998642673,-500.0,0.00016438,2]
[335228828,1723998642683,-500.0,0.00016438,2]
[335228829,1723998642693,-500.0,0.00016438,2]
[335228830,1723998642702,-500.0,0.00016438,2]
[335228831,1723998642711,-151.0,0.00016438,2]
[335228832,1723998642721,-151.507021,0.00016438,2]
[335228833,1723998642731,-500.0,0.00016438,2]
[335228834,1723998642740,-500.0,0.00016438,2]
[335228835,1723998642750,-500.0,0.00016438,2]
[335228836,1723998642760,-500.0,0.00016438,2]
[335228837,1723998642770,-500.0,0.00016438,2]
[335228838,1723998642779,-620.55,0.00016438,2]
[335228839,1723998642789,-500.0,0.00016438,2]
[335228840,1723998642798,-500.0,0.00016438,2]
[335228841,1723998642808,-500.0,0.00016438,2]
[335228842,1723998642819,-500.0,0.00016438,2]
[335228843,1723998642828,-500.0,0.00016438,2]
[335228844,1723998642837,-151.0,0.00016438,2]
[335228845,1723998642846,-151.0,0.00016438,2]
[335228846,1723998642856,-500.0,0.00016438,2]
[335228847,1723998642979,-688.4,0.00016438,2]
[335228848,1723998642989,-151.0,0.00016438,2]
[335228849,1723998642999,-500.0,0.00016438,2]
[335228850,1723998643008,-500.0,0.00016438,2]
[335228851,1723998643017,-313.130358,0.00016438,2]
[335228852,1723998643027,-313.130358,0.00016438,2]
[335228853,1723998643038,-313.130358,0.00016438,2]
[335228854,1723998643049,-645.52102326,0.00016438,2]
[335228855,1723998643058,-313.130358,0.00016438,2]
[335228856,1723998643069,-313.130358,0.00016438,2]
[335228857,1723998643078,-500.0,0.00016438,2]
[335228858,1723998643088,-313.130358,0.00016438,2]
[335228859,1723998643098,-500.0,0.00016438,2]
[335228861,1723998643107,-500.0,0.00016438,2]
[335228862,1723998643117,-500.0,0.00016438,2]
[335228863,1723998643127,-505.45642932,0.00016438,2]
[335228865,1723998643136,-500.0,0.00016438,2]
[335228867,1723998643146,-500.0,0.00016438,2]
[335228869,1723998643156,-500.0,0.00016438,2]
[335228871,1723998643166,-500.0,0.00016438,2]
[335228872,1723998643175,-500.0,0.00016438,2]
[335228873,1723998643186,-500.0,0.00016438,2]
[335228874,1723998643196,-500.0,0.00016438,2]
[335228875,1723998643206,-500.0,0.00016438,2]
[335228876,1723998643215,-305.87672062,0.00016438,2]